[Event "Late-Titled-Tuesday-Blitz-February-27-2024"]
[Site "Chess.com"]
[Date "2024.02.27"]
[Round "2"]
[White "rdarruda"]
[Black "Charodej1"]
[Result "1-0"]
[WhiteElo "2519"]
[BlackElo "2301"]
[TimeControl "180+1"]
[EndTime "14:18:34 PST"]
[Termination "rdarruda won by resignation"]

1. d4 {[%clk 0:02:33.5]} 1... Nf6 {[%clk 0:02:59.3]} 2. Nf3 {[%clk 0:02:33.5]}
2... e6 {[%clk 0:02:58.8]} 3. g3 {[%clk 0:02:34]} 3... c5 {[%clk 0:02:56.4]} 4.
Bg2 {[%clk 0:02:33.7]} 4... Nc6 {[%clk 0:02:55.7]} 5. O-O {[%clk 0:02:32.6]}
5... Be7 {[%clk 0:02:53.4]} 6. b3 {[%clk 0:02:32.3]} 6... O-O {[%clk 0:02:51.8]}
7. Bb2 {[%clk 0:02:32.4]} 7... b6 {[%clk 0:02:48.9]} 8. Ne5 {[%clk 0:02:31.2]}
8... Bb7 {[%clk 0:02:34]} 9. Nd2 {[%clk 0:02:29.9]} 9... Qc7 {[%clk 0:02:27.2]}
10. Nxc6 {[%clk 0:02:29.3]} 10... Bxc6 {[%clk 0:02:25]} 11. e4 {[%clk
0:02:25.2]} 11... cxd4 {[%clk 0:02:15]} 12. Bxd4 {[%clk 0:02:26.1]} 12... Qb7
{[%clk 0:02:14.8]} 13. Qe2 {[%clk 0:02:23.8]} 13... Rfc8 {[%clk 0:02:07.6]} 14.
c4 {[%clk 0:02:22]} 14... d6 {[%clk 0:01:48.2]} 15. Rad1 {[%clk 0:02:15.6]}
15... a6 {[%clk 0:01:38]} 16. f4 {[%clk 0:02:11.1]} 16... Nd7 {[%clk 0:01:20]}
17. Rfe1 {[%clk 0:01:58.4]} 17... b5 {[%clk 0:01:19.4]} 18. Qg4 {[%clk
0:01:52.1]} 18... Bf8 {[%clk 0:00:44.6]} 19. Rc1 {[%clk 0:01:44.9]} 19... Nb6
{[%clk 0:00:41.4]} 20. c5 {[%clk 0:01:21.8]} 20... dxc5 {[%clk 0:00:40.2]} 21.
Bxc5 {[%clk 0:01:22.7]} 21... Bxc5+ {[%clk 0:00:25.4]} 22. Rxc5 {[%clk
0:01:23.6]} 22... Qd7 {[%clk 0:00:25.6]} 23. Qe2 {[%clk 0:01:13.6]} 23... Bb7
{[%clk 0:00:23.8]} 24. Rec1 {[%clk 0:01:03.9]} 24... Rxc5 {[%clk 0:00:23.4]} 25.
Rxc5 {[%clk 0:01:04.8]} 25... Rc8 {[%clk 0:00:15.4]} 26. Rxc8+ {[%clk
0:01:00.9]} 26... Qxc8 {[%clk 0:00:14.8]} 27. Nf1 {[%clk 0:01:01.4]} 27... Qc5+
{[%clk 0:00:14.4]} 28. Qf2 {[%clk 0:01:01.3]} 28... Nd7 {[%clk 0:00:12.6]} 29.
Qxc5 {[%clk 0:00:58.6]} 29... Nxc5 {[%clk 0:00:13.5]} 30. Nd2 {[%clk 0:00:57.3]}
30... a5 {[%clk 0:00:13.3]} 31. Kf2 {[%clk 0:00:57]} 31... Kf8 {[%clk
0:00:13.2]} 32. Ke3 {[%clk 0:00:57]} 32... Ke7 {[%clk 0:00:11.9]} 33. Kd4 {[%clk
0:00:56.9]} 33... Nd7 {[%clk 0:00:11.3]} 34. Bf1 {[%clk 0:00:55]} 34... Bc6
{[%clk 0:00:11]} 35. a3 {[%clk 0:00:49.9]} 35... Kd6 {[%clk 0:00:11.2]} 36. e5+
{[%clk 0:00:49.2]} 36... Kc7 {[%clk 0:00:11.4]} 37. Bd3 {[%clk 0:00:48.4]} 37...
h6 {[%clk 0:00:10.8]} 38. h4 {[%clk 0:00:48.2]} 38... Kb6 {[%clk 0:00:10.6]} 39.
b4 {[%clk 0:00:46.4]} 39... Nf8 {[%clk 0:00:08.3]} 40. Be4 {[%clk 0:00:45.2]}
40... axb4 {[%clk 0:00:07.5]} 41. axb4 {[%clk 0:00:43.1]} 41... Nd7 {[%clk
0:00:07.8]} 42. Bxc6 {[%clk 0:00:41.7]} 42... Kxc6 {[%clk 0:00:08.7]} 43. Ne4
{[%clk 0:00:41.9]} 43... f6 {[%clk 0:00:07.4]} 44. Nd6 {[%clk 0:00:33.8]} 44...
f5 {[%clk 0:00:05.5]} 45. Ne8 {[%clk 0:00:33.3]} 45... Nf8 {[%clk 0:00:05.2]}
46. h5 {[%clk 0:00:30.5]} 46... Kd7 {[%clk 0:00:05.3]} 47. Nd6 {[%clk
0:00:25.6]} 47... Kc6 {[%clk 0:00:05.4]} 48. Kd3 {[%clk 0:00:16.6]} 48... Nd7
{[%clk 0:00:04.1]} 49. Ke3 {[%clk 0:00:16.6]} 49... Nf8 {[%clk 0:00:04]} 50. Kd4
{[%clk 0:00:14.5]} 50... Nd7 {[%clk 0:00:04.1]} 51. Ne8 {[%clk 0:00:14.6]} 51...
Nf8 {[%clk 0:00:04.2]} 52. Nxg7 {[%clk 0:00:14.6]} 52... Kd7 {[%clk 0:00:02.5]}
53. g4 {[%clk 0:00:13.1]} 53... fxg4 {[%clk 0:00:02.1]} 54. f5 {[%clk
0:00:13.5]} 54... exf5 {[%clk 0:00:02]} 55. Nxf5 {[%clk 0:00:14.4]} 55... Ne6+
{[%clk 0:00:02.4]} 56. Ke3 {[%clk 0:00:14.2]} 56... g3 {[%clk 0:00:01.1]} 57.
Nxh6 {[%clk 0:00:13.1]} 57... Nc7 {[%clk 0:00:02]} 58. Nf5 {[%clk 0:00:11.2]}
58... Nd5+ {[%clk 0:00:02.2]} 59. Kf3 {[%clk 0:00:11.6]} 59... Ke6 {[%clk
0:00:02.7]} 60. h6 {[%clk 0:00:11.8]} 60... Kf7 {[%clk 0:00:01.9]} 61. h7 {[%clk
0:00:11.5]} 61... g2 {[%clk 0:00:01.9]} 62. Kxg2 {[%clk 0:00:09.7]} 62... Nf4+
{[%clk 0:00:02.6]} 63. Kf3 {[%clk 0:00:09.7]} 63... Ng6 {[%clk 0:00:03.5]} 64.
Ke4 {[%clk 0:00:09.6]} 64... Kf8 {[%clk 0:00:03.2]} 65. Kd5 {[%clk 0:00:09.6]}
1-0

[Event "Late-Titled-Tuesday-Blitz-February-27-2024"]
[Site "Chess.com"]
[Date "2024.02.27"]
[Round "2"]
[White "Yurovskykh_Oleksandr"]
[Black "Aleksandar-Topalov"]
[Result "1/2-1/2"]
[WhiteElo "2681"]
[BlackElo "2359"]
[TimeControl "180+1"]
[EndTime "14:18:35 PST"]
[Termination "Game drawn by repetition"]

1. d4 {[%clk 0:03:00.9]} 1... Nf6 {[%clk 0:01:43.8]} 2. Nf3 {[%clk 0:02:59.3]}
2... g6 {[%clk 0:01:42.9]} 3. Bf4 {[%clk 0:02:58.5]} 3... Bg7 {[%clk 0:01:42.3]}
4. e3 {[%clk 0:02:58.3]} 4... d6 {[%clk 0:01:42.5]} 5. h3 {[%clk 0:02:57.1]}
5... O-O {[%clk 0:01:41.9]} 6. Be2 {[%clk 0:02:57.7]} 6... b6 {[%clk 0:01:38.7]}
7. c4 {[%clk 0:02:57.4]} 7... Ne4 {[%clk 0:01:37.5]} 8. O-O {[%clk 0:02:54.2]}
8... Bb7 {[%clk 0:01:37.3]} 9. Nbd2 {[%clk 0:02:42.6]} 9... Nxd2 {[%clk
0:01:35.9]} 10. Qxd2 {[%clk 0:02:43.5]} 10... Nd7 {[%clk 0:01:35.8]} 11. Rfd1
{[%clk 0:02:43.4]} 11... e5 {[%clk 0:01:34.3]} 12. Bh2 {[%clk 0:02:28.9]} 12...
a5 {[%clk 0:01:30]} 13. dxe5 {[%clk 0:02:20.8]} 13... Nxe5 {[%clk 0:01:29]} 14.
Nxe5 {[%clk 0:02:20.7]} 14... Bxe5 {[%clk 0:01:28.4]} 15. Bxe5 {[%clk
0:02:20.2]} 15... dxe5 {[%clk 0:01:28.4]} 16. Qd7 {[%clk 0:02:12.4]} 16... Re8
{[%clk 0:01:08.3]} 17. Rd2 {[%clk 0:02:00.4]} 17... Qe7 {[%clk 0:01:05.2]} 18.
Rad1 {[%clk 0:01:53.9]} 18... Qc5 {[%clk 0:01:02]} 19. Qb5 {[%clk 0:01:48.3]}
19... Bc6 {[%clk 0:00:55.5]} 20. Qxc5 {[%clk 0:01:46.6]} 20... bxc5 {[%clk
0:00:55.6]} 21. Kf1 {[%clk 0:01:18.9]} 21... Kf8 {[%clk 0:00:55.5]} 22. Bf3
{[%clk 0:01:18.1]} 22... e4 {[%clk 0:00:55.1]} 23. Be2 {[%clk 0:01:17.9]} 23...
Ke7 {[%clk 0:00:54.8]} 24. Ke1 {[%clk 0:01:15.2]} 24... Red8 {[%clk 0:00:53.5]}
25. Rxd8 {[%clk 0:01:14.8]} 25... Rxd8 {[%clk 0:00:52.4]} 26. Rc1 {[%clk
0:01:07.3]} 26... Rb8 {[%clk 0:00:46.8]} 27. Rc2 {[%clk 0:01:06.8]} 27... a4
{[%clk 0:00:44.4]} 28. Kd2 {[%clk 0:01:04.9]} 28... Kd6 {[%clk 0:00:43.4]} 29.
Kc1 {[%clk 0:01:04.2]} 29... Ke5 {[%clk 0:00:41.3]} 30. Rd2 {[%clk 0:01:03.3]}
30... f5 {[%clk 0:00:36.3]} 31. h4 {[%clk 0:01:01.1]} 31... Ke6 {[%clk
0:00:35.9]} 32. g3 {[%clk 0:00:58.6]} 32... h6 {[%clk 0:00:25.3]} 33. Bd1 {[%clk
0:00:50]} 33... Ke7 {[%clk 0:00:22.1]} 34. b3 {[%clk 0:00:48.5]} 34... a3 {[%clk
0:00:19.6]} 35. Kc2 {[%clk 0:00:46.7]} 35... Rb4 {[%clk 0:00:19.4]} 36. Kc3
{[%clk 0:00:46.7]} 36... Rb8 {[%clk 0:00:19.3]} 37. Be2 {[%clk 0:00:41.8]} 37...
g5 {[%clk 0:00:18.2]} 38. hxg5 {[%clk 0:00:39.7]} 38... hxg5 {[%clk 0:00:18.3]}
39. Rd1 {[%clk 0:00:40.2]} 39... Rh8 {[%clk 0:00:18.1]} 40. b4 {[%clk
0:00:39.2]} 40... cxb4+ {[%clk 0:00:17.2]} 41. Kxb4 {[%clk 0:00:40.1]} 41... Rh2
{[%clk 0:00:16.7]} 42. Rf1 {[%clk 0:00:39.6]} 42... f4 {[%clk 0:00:14.7]} 43.
gxf4 {[%clk 0:00:15.2]} 43... gxf4 {[%clk 0:00:14.8]} 44. exf4 {[%clk
0:00:15.7]} 44... e3 {[%clk 0:00:15]} 45. Kxa3 {[%clk 0:00:15.9]} 45... Rxf2
{[%clk 0:00:13.2]} 46. Rxf2 {[%clk 0:00:15.8]} 46... exf2 {[%clk 0:00:13.6]} 47.
Bf1 {[%clk 0:00:15.4]} 47... Kf6 {[%clk 0:00:13.1]} 48. Kb4 {[%clk 0:00:15.2]}
48... Kf5 {[%clk 0:00:13.4]} 49. a4 {[%clk 0:00:13.6]} 49... Kxf4 {[%clk
0:00:13]} 50. a5 {[%clk 0:00:13.5]} 50... Ke3 {[%clk 0:00:13.1]} 51. Kc5 {[%clk
0:00:12.3]} 51... Ba8 {[%clk 0:00:12.4]} 52. Kb5 {[%clk 0:00:08.5]} 52... Kd2
{[%clk 0:00:10.6]} 53. Ka6 {[%clk 0:00:06.2]} 53... Ke1 {[%clk 0:00:10.5]} 54.
Bh3 {[%clk 0:00:05.8]} 54... Be4 {[%clk 0:00:07.1]} 55. Ka7 {[%clk 0:00:05.3]}
55... Bd3 {[%clk 0:00:07]} 56. c5 {[%clk 0:00:04.1]} 56... Bf1 {[%clk
0:00:05.2]} 57. Bf5 {[%clk 0:00:03.9]} 57... Bg2 {[%clk 0:00:03.8]} 58. Bd3
{[%clk 0:00:04]} 58... Bf1 {[%clk 0:00:04.2]} 59. Bf5 {[%clk 0:00:04.1]} 59...
Bg2 {[%clk 0:00:04.4]} 60. Bd3 {[%clk 0:00:04.2]} 60... Bf1 {[%clk 0:00:04.9]}
61. Bf5 {[%clk 0:00:04.3]} 1/2-1/2

[Event "Late-Titled-Tuesday-Blitz-February-27-2024"]
[Site "Chess.com"]
[Date "2024.02.27"]
[Round "2"]
[White "Bugcrusher"]
[Black "lucliasco"]
[Result "1/2-1/2"]
[WhiteElo "2585"]
[BlackElo "2891"]
[TimeControl "180+1"]
[EndTime "14:18:45 PST"]
[Termination "Game drawn - insufficient material"]

1. d4 {[%clk 0:03:00.9]} 1... d5 {[%clk 0:02:57.6]} 2. Bf4 {[%clk 0:02:59.8]}
2... c5 {[%clk 0:02:56.3]} 3. e3 {[%clk 0:02:59.8]} 3... Nc6 {[%clk 0:02:53.4]}
4. Nf3 {[%clk 0:02:59.4]} 4... Nf6 {[%clk 0:02:47.7]} 5. Nbd2 {[%clk 0:02:58.9]}
5... e6 {[%clk 0:02:43.5]} 6. c3 {[%clk 0:02:58]} 6... Qb6 {[%clk 0:02:39.8]} 7.
Rb1 {[%clk 0:02:44.9]} 7... a5 {[%clk 0:02:36.1]} 8. Bd3 {[%clk 0:02:41.6]} 8...
Be7 {[%clk 0:02:34.7]} 9. O-O {[%clk 0:02:41]} 9... O-O {[%clk 0:02:34.1]} 10.
Qe2 {[%clk 0:02:32.9]} 10... Bd7 {[%clk 0:02:30.1]} 11. dxc5 {[%clk 0:02:26.7]}
11... Bxc5 {[%clk 0:02:27.6]} 12. e4 {[%clk 0:02:26.7]} 12... Nh5 {[%clk
0:02:23.8]} 13. Bg3 {[%clk 0:02:10.6]} 13... Nxg3 {[%clk 0:02:21.5]} 14. hxg3
{[%clk 0:02:10.6]} 14... Rfe8 {[%clk 0:02:20.9]} 15. e5 {[%clk 0:02:07]} 15...
h6 {[%clk 0:02:14.7]} 16. Nb3 {[%clk 0:02:04.9]} 16... Bf8 {[%clk 0:02:14.8]}
17. Nbd4 {[%clk 0:02:03.4]} 17... a4 {[%clk 0:02:14.6]} 18. a3 {[%clk
0:02:03.1]} 18... Bc5 {[%clk 0:02:11.6]} 19. Rbd1 {[%clk 0:01:56.7]} 19... Nxd4
{[%clk 0:02:03.6]} 20. cxd4 {[%clk 0:01:54.8]} 20... Be7 {[%clk 0:02:02.3]} 21.
g4 {[%clk 0:01:48.9]} 21... Ra5 {[%clk 0:01:58.4]} 22. Rc1 {[%clk 0:01:28.6]}
22... Bb5 {[%clk 0:01:27.5]} 23. Bxb5 {[%clk 0:01:27.4]} 23... Rxb5 {[%clk
0:01:24.8]} 24. Rc2 {[%clk 0:01:27]} 24... Rb3 {[%clk 0:01:24.5]} 25. Rfc1
{[%clk 0:01:26.4]} 25... Qb5 {[%clk 0:01:23.7]} 26. Qxb5 {[%clk 0:01:24.9]}
26... Rxb5 {[%clk 0:01:24.6]} 27. Rc8 {[%clk 0:01:20.2]} 27... Rxc8 {[%clk
0:01:21.4]} 28. Rxc8+ {[%clk 0:01:19.4]} 28... Kh7 {[%clk 0:01:22.3]} 29. Rc7
{[%clk 0:01:13.8]} 29... Bg5 {[%clk 0:01:18.3]} 30. Nxg5+ {[%clk 0:01:10.2]}
30... hxg5 {[%clk 0:01:19.2]} 31. Rxf7 {[%clk 0:01:05.9]} 31... Rxb2 {[%clk
0:01:19.3]} 32. g3 {[%clk 0:01:00.7]} 32... b5 {[%clk 0:01:18.7]} 33. Rb7 {[%clk
0:00:57.1]} 33... b4 {[%clk 0:01:18.1]} 34. axb4 {[%clk 0:00:56.4]} 34... a3
{[%clk 0:01:18]} 35. Ra7 {[%clk 0:00:56.7]} 35... Rxb4 {[%clk 0:01:16]} 36. Rxa3
{[%clk 0:00:56.1]} 36... Rxd4 {[%clk 0:01:16.7]} 37. Ra6 {[%clk 0:00:55.8]}
37... Rxg4 {[%clk 0:01:14.4]} 38. Rxe6 {[%clk 0:00:55.8]} 38... Re4 {[%clk
0:01:15.2]} 39. Kg2 {[%clk 0:00:55.4]} 39... g4 {[%clk 0:01:14.9]} 40. Kg1
{[%clk 0:00:51.6]} 40... g6 {[%clk 0:01:14.6]} 41. Kg2 {[%clk 0:00:50.4]} 41...
Kh6 {[%clk 0:01:14.9]} 42. Re8 {[%clk 0:00:50.1]} 42... Kg5 {[%clk 0:01:14.4]}
43. f4+ {[%clk 0:00:40.7]} 43... gxf3+ {[%clk 0:01:07.6]} 44. Kxf3 {[%clk
0:00:40.7]} 44... Kf5 {[%clk 0:01:06.5]} 45. Rf8+ {[%clk 0:00:28]} 45... Kxe5
{[%clk 0:01:05.9]} 46. Rg8 {[%clk 0:00:28.2]} 46... Kf5 {[%clk 0:01:04.5]} 47.
Rf8+ {[%clk 0:00:28]} 47... Kg5 {[%clk 0:01:03.2]} 48. Rd8 {[%clk 0:00:27.6]}
48... Rd4 {[%clk 0:01:02.6]} 49. Ke3 {[%clk 0:00:26.4]} 49... Re4+ {[%clk
0:01:02.2]} 50. Kf3 {[%clk 0:00:26.8]} 50... Re5 {[%clk 0:01:02.8]} 51. Rd7
{[%clk 0:00:24.4]} 51... Kf6 {[%clk 0:01:02.3]} 52. Rd8 {[%clk 0:00:24.1]} 52...
g5 {[%clk 0:01:01.8]} 53. Kg4 {[%clk 0:00:21.7]} 53... Ke7 {[%clk 0:01:01.3]}
54. Ra8 {[%clk 0:00:17.5]} 54... d4 {[%clk 0:01:01.3]} 55. Ra4 {[%clk 0:00:17]}
55... Rd5 {[%clk 0:01:01.1]} 56. Ra2 {[%clk 0:00:16.7]} 56... Kd6 {[%clk
0:00:59.9]} 57. Kf3 {[%clk 0:00:16.6]} 57... Re5 {[%clk 0:00:58]} 58. Ra6+
{[%clk 0:00:15]} 58... Kc7 {[%clk 0:00:58.3]} 59. Ra4 {[%clk 0:00:14.6]} 59...
Re3+ {[%clk 0:00:55.7]} 60. Kg4 {[%clk 0:00:14.6]} 60... Re4+ {[%clk 0:00:42.1]}
61. Kxg5 {[%clk 0:00:14.5]} 61... Kd6 {[%clk 0:00:42.7]} 62. Kf5 {[%clk
0:00:14.7]} 62... Re5+ {[%clk 0:00:42.8]} 63. Kf4 {[%clk 0:00:14.8]} 63... Rd5
{[%clk 0:00:37.7]} 64. Ra2 {[%clk 0:00:14.9]} 64... d3 {[%clk 0:00:35.4]} 65.
Rd2 {[%clk 0:00:14]} 65... Kc5 {[%clk 0:00:36]} 66. g4 {[%clk 0:00:14.5]} 66...
Kd4 {[%clk 0:00:34.8]} 67. g5 {[%clk 0:00:14.7]} 67... Kc3 {[%clk 0:00:35.5]}
68. Rd1 {[%clk 0:00:15]} 68... Kc2 {[%clk 0:00:35.9]} 69. Rg1 {[%clk 0:00:14.7]}
69... d2 {[%clk 0:00:31.7]} 70. g6 {[%clk 0:00:15.1]} 70... Rd7 {[%clk
0:00:31.5]} 71. Kf5 {[%clk 0:00:15.1]} 71... Rd5+ {[%clk 0:00:31.4]} 72. Kf6
{[%clk 0:00:15.2]} 72... Rd6+ {[%clk 0:00:31.8]} 73. Kf7 {[%clk 0:00:15.7]}
73... Rd7+ {[%clk 0:00:32.1]} 74. Kf6 {[%clk 0:00:16.2]} 74... Rd6+ {[%clk
0:00:32.3]} 75. Kf7 {[%clk 0:00:16.7]} 75... d1=Q {[%clk 0:00:24]} 76. Rxd1
{[%clk 0:00:16.1]} 76... Rxd1 {[%clk 0:00:24.9]} 77. g7 {[%clk 0:00:16.7]} 77...
Rf1+ {[%clk 0:00:25.4]} 78. Ke8 {[%clk 0:00:17.2]} 78... Rg1 {[%clk 0:00:26.3]}
79. Kf8 {[%clk 0:00:17.6]} 79... Rxg7 {[%clk 0:00:27]} 80. Kxg7 {[%clk
0:00:17.9]} 1/2-1/2

[Event "Late-Titled-Tuesday-Blitz-February-27-2024"]
[Site "Chess.com"]
[Date "2024.02.27"]
[Round "2"]
[White "Petukhov_Dmitry"]
[Black "Sokoloco"]
[Result "0-1"]
[WhiteElo "2545"]
[BlackElo "2791"]
[TimeControl "180+1"]
[EndTime "14:18:57 PST"]
[Termination "Sokoloco won on time"]

1. e4 {[%clk 0:02:54.9]} 1... d6 {[%clk 0:03:00]} 2. d4 {[%clk 0:02:54.8]} 2...
g6 {[%clk 0:03:00.2]} 3. Nc3 {[%clk 0:02:54.8]} 3... Bg7 {[%clk 0:03:00.9]} 4.
Be3 {[%clk 0:02:54.7]} 4... a6 {[%clk 0:03:01.2]} 5. a4 {[%clk 0:02:54.5]} 5...
b6 {[%clk 0:03:01.4]} 6. Qd2 {[%clk 0:02:54.7]} 6... Bb7 {[%clk 0:03:01.6]} 7.
f3 {[%clk 0:02:54.6]} 7... Nd7 {[%clk 0:03:01.7]} 8. Bd3 {[%clk 0:02:53.3]} 8...
c5 {[%clk 0:02:57.6]} 9. d5 {[%clk 0:02:53]} 9... b5 {[%clk 0:02:26.9]} 10. axb5
{[%clk 0:02:38.4]} 10... axb5 {[%clk 0:02:27.8]} 11. Rxa8 {[%clk 0:02:37.9]}
11... Qxa8 {[%clk 0:02:28.7]} 12. Nxb5 {[%clk 0:02:25]} 12... Qa1+ {[%clk
0:02:26.9]} 13. Qc1 {[%clk 0:02:24.3]} 13... Qxb2 {[%clk 0:02:18.6]} 14. Qxb2
{[%clk 0:02:24.1]} 14... Bxb2 {[%clk 0:02:19.5]} 15. Kd2 {[%clk 0:02:24]} 15...
Bg7 {[%clk 0:02:07.4]} 16. Ne2 {[%clk 0:02:22.4]} 16... Ngf6 {[%clk 0:02:05.8]}
17. Rb1 {[%clk 0:02:17.9]} 17... Bc8 {[%clk 0:01:28.4]} 18. Nc7+ {[%clk
0:01:59.6]} 18... Kd8 {[%clk 0:01:26]} 19. Nb5 {[%clk 0:01:58.3]} 19... Ne5
{[%clk 0:01:15.6]} 20. Bf4 {[%clk 0:01:47.6]} 20... Nh5 {[%clk 0:00:45.5]} 21.
g3 {[%clk 0:01:34.1]} 21... Nxf3+ {[%clk 0:00:35.2]} 22. Ke3 {[%clk 0:01:33.7]}
22... Ne5 {[%clk 0:00:33.5]} 23. Na7 {[%clk 0:00:45.2]} 23... Kc7 {[%clk
0:00:31.7]} 24. Nb5+ {[%clk 0:00:42.6]} 24... Kd7 {[%clk 0:00:28.6]} 25. Na7
{[%clk 0:00:42.8]} 25... Nxd3 {[%clk 0:00:15.7]} 26. cxd3 {[%clk 0:00:40.7]}
26... Ba6 {[%clk 0:00:12.7]} 27. Rb6 {[%clk 0:00:37.3]} 27... Bc8 {[%clk
0:00:09.2]} 28. d4 {[%clk 0:00:27.7]} 28... cxd4+ {[%clk 0:00:07.3]} 29. Nxd4
{[%clk 0:00:28.6]} 29... Bxd4+ {[%clk 0:00:05.3]} 30. Kxd4 {[%clk 0:00:29.5]}
30... Nxf4 {[%clk 0:00:04.3]} 31. gxf4 {[%clk 0:00:30.4]} 31... g5 {[%clk
0:00:02.2]} 32. fxg5 {[%clk 0:00:28.9]} 32... h6 {[%clk 0:00:02.8]} 33. h4
{[%clk 0:00:19.4]} 33... hxg5 {[%clk 0:00:02.6]} 34. hxg5 {[%clk 0:00:20.3]}
34... Rh1 {[%clk 0:00:02.4]} 35. Rb8 {[%clk 0:00:15.8]} 35... Ba6 {[%clk
0:00:02.7]} 36. Rb6 {[%clk 0:00:16.2]} 36... Be2 {[%clk 0:00:02.2]} 37. Rb7+
{[%clk 0:00:16.2]} 37... Ke8 {[%clk 0:00:02.4]} 38. Nc6 {[%clk 0:00:15]} 38...
Bg4 {[%clk 0:00:01.6]} 39. Rxe7+ {[%clk 0:00:13.7]} 39... Kf8 {[%clk 0:00:01.6]}
40. Rc7 {[%clk 0:00:10.3]} 40... Rd1+ {[%clk 0:00:02.2]} 41. Ke3 {[%clk
0:00:10.4]} 41... Re1+ {[%clk 0:00:02.5]} 42. Kf4 {[%clk 0:00:10.7]} 42... Bh3
{[%clk 0:00:03.2]} 43. Rb7 {[%clk 0:00:09.3]} 43... Bg2 {[%clk 0:00:03.1]} 44.
Re7 {[%clk 0:00:07.4]} 44... Rc1 {[%clk 0:00:02.6]} 45. Rd7 {[%clk 0:00:06.7]}
45... Re1 {[%clk 0:00:03.2]} 46. Rd8+ {[%clk 0:00:04.2]} 46... Kg7 {[%clk
0:00:03.3]} 47. Rxd6 {[%clk 0:00:05.1]} 47... Rxe4+ {[%clk 0:00:03.2]} 48. Kf5
{[%clk 0:00:05.6]} 48... Rc4 {[%clk 0:00:02.6]} 49. Ke5 {[%clk 0:00:04.1]} 49...
Re4+ {[%clk 0:00:02.3]} 50. Kf5 {[%clk 0:00:04.3]} 50... Ra4 {[%clk 0:00:03.2]}
51. Rd8 {[%clk 0:00:04.2]} 51... Bh3+ {[%clk 0:00:02.6]} 52. Ke5 {[%clk
0:00:04.7]} 52... Kg6 {[%clk 0:00:03.3]} 53. Rg8+ {[%clk 0:00:04.3]} 53... Kh7
{[%clk 0:00:03.8]} 54. Rf8 {[%clk 0:00:04.3]} 54... Kg7 {[%clk 0:00:04]} 55. Rd8
{[%clk 0:00:04.5]} 55... Kg6 {[%clk 0:00:04.5]} 56. Rg8+ {[%clk 0:00:04.9]}
56... Kh7 {[%clk 0:00:04.9]} 57. Rb8 {[%clk 0:00:04.4]} 57... Kg6 {[%clk
0:00:05]} 58. Kd6 {[%clk 0:00:05.2]} 58... Kxg5 {[%clk 0:00:04.6]} 59. Rg8+
{[%clk 0:00:06.1]} 59... Kf6 {[%clk 0:00:04.9]} 60. Kc7 {[%clk 0:00:03.3]} 60...
Rc4 {[%clk 0:00:03.5]} 61. Rh8 {[%clk 0:00:03.3]} 61... Bg2 {[%clk 0:00:03.6]}
62. Rh6+ {[%clk 0:00:02.6]} 62... Kg7 {[%clk 0:00:03.4]} 63. Rh5 {[%clk
0:00:02.6]} 63... Kg6 {[%clk 0:00:04]} 64. Re5 {[%clk 0:00:02.2]} 64... f6
{[%clk 0:00:04.7]} 0-1